[Event "Charlotte Spring IM-C 2023"]
[Site "Charlotte"]
[Date "2023.03.20"]
[Round "9.2"]
[White "Amburgy, Ryan"]
[Black "Chiku-Ratte, Olivier-Kenta"]
[Result "1/2-1/2"]
[ECO "E08"]
[WhiteElo "2242"]
[BlackElo "2301"]
[Annotator "TA"]
[PlyCount "286"]
[EventDate "2023.03.14"]
[EventType "tourn"]
[EventCountry "USA"]
[SourceTitle "playchess.com"]
[Source "ChessBase"]
[SourceQuality "1"]
[TimeControl "5400+30"]

{[%evp 73,286,-9,-9,-9,-9,-9,0,0,0,0,0,0,0,0,0,0,0,0,0,0,0,0,0,0,0,0,0,0,0,0,0,0,0,0,0,0,0,0,0,0,0,0,0,0,0,0,0,0,0,0,0,0,0,0,0,0,0,0,0,0,0,0,0,0,0,0,0,0,0,0,0,0,0,0,0,0,0,0,0,0,0,0,0,0,0,0,0,0,0,0,0,0,0,0,0,0,0,0,0,0,0,0,0,0,0,0,0,0,0,0,0,0,0,0,0,0,0,0,0,0,0,0,0,0,0,0,0,0,0,0,0,0,0,0,0,0,0,0,0,0,0,0,0,0,0,0,0,-1,0,0,0,-1,0,0,0,0,0,0,0,0,0,0,0,0,0,0,0,0,0,0,0,0,0,0,0,0,0,0,0,0,0,-1,-1,-1,-1,-1,-1,-1,-1,-1,0,-1,-1,-1,-1,-1,-1,-1,0,0,0,-1,-1,-1,-1,-2,-2,-10,-24,-25,0,0,0,-25,0]} 1. d4 {[%emt 0:00:02]} d5 {[%emt 0:00:20]} 2. c4 {[%emt 0:00:05]} c6 {[%emt 0:00:04]} 3. Nf3 {[%emt 0:00:04]} Nf6 {[%emt 0:00:05]} 4. Nc3 {[%emt 0:00:07]} e6 {[%emt 0:00:47]} 5. g3 {[%emt 0:00:19]} Be7 {[%emt 0:03:36]} 6. Bg2 {[%emt 0:00:11]} O-O {[%emt 0:00:06]} 7. O-O {[%emt 0:00:31]} b6 {[%emt 0:01:37]} 8. Nd2 {[%emt 0:01:43]} Ba6 {[%emt 0:01:29]} 9. b3 {[%emt 0:00:14]} b5 {[%emt 0:00:27]} 10. Bb2 {[%emt 0:06:19]} Nbd7 {[%emt 0:03:44]} 11. Qc2 {[%emt 0:08:30]} bxc4 {[%emt 0:06:19]} 12. bxc4 {[%emt 0:00:02]} Rb8 {[%emt 0:03:38]} 13. Rab1 {[%emt 0:05:08]} Nb6 {[%emt 0:02:50]} 14. c5 {[%emt 0:00:48]} Nc4 {[%emt 0:00:08]} 15. Nxc4 {[%emt 0:00:47]} Bxc4 {[%emt 0:00:10]} 16. Rfe1 {[%emt 0:16:37]} Qa5 {[%emt 0:08:10]} 17. Bf1 {[%emt 0:01:55]} Qa6 {[%emt 0:03:01]} 18. e3 {[%emt 0:02:32]} e5 {[%emt 0:03:53]} 19. Bxc4 {[%emt 0:03:50]} Qxc4 {[%emt 0:00:32]} 20. Qe2 {[%emt 0:00:12]} Qxe2 {[%emt 0:01:05]} 21. Nxe2 {[%emt 0:00:09]} e4 {[%emt 0:15:54]} 22. Bc3 {[%emt 0:00:49]} Nd7 {[%emt 0:00:04]} 23. Ba5 {[%emt 0:03:21]} Rxb1 {[%emt 0:01:00]} 24. Rxb1 {[%emt 0:00:01]} Rb8 {[%emt 0:00:02]} 25. Rxb8+ {[%emt 0:00:24]} Nxb8 {[%emt 0:00:02]} 26. Kf1 {[%emt 0:11:47]} f5 {[%emt 0:01:26]} 27. h4 {[%emt 0:00:26]} Kf7 {[%emt 0:00:06]} 28. a3 {[%emt 0:00:53]} g6 {[%emt 0:01:44]} 29. Nc1 {[%emt 0:00:41]} h6 {[%emt 0:00:14]} 30. Ke2 {[%emt 0:00:58]} Ke6 {[%emt 0:00:34]} 31. Nb3 {[%emt 0:00:43]} g5 {[%emt 0:00:52]} 32. hxg5 {[%emt 0:00:02]} hxg5 {[%emt 0:00:03]} 33. Kd2 {[%emt 0:00:46]} Kd7 {[%emt 0:01:06]} 34. Ke2 {[%emt 0:00:08]} Kc8 {[%emt 0:00:22]} 35. Be1 {[%emt 0:01:02]} Nd7 {[%emt 0:00:24]} 36. Na5 {[%emt 0:00:19]} Kc7 {[%emt 0:01:48]} 37. Bd2 {[%emt 0:00:32]} Nf6 {[%emt 0:00:21]} 38. Kf1 {[%emt 0:00:18]} Nh5 {[%emt 0:02:06]} 39. Kg2 {[%emt 0:00:30]} Ng7 {[%emt 0:00:06]} 40. g4 {[%emt 0:01:20]} Kd7 {[%emt 0:02:57]} 41. Kh3 {[%emt 0:03:00]} Bd8 {[%emt 0:01:52]} 42. gxf5 {[%emt 0:00:12]} Nxf5 {[%emt 0:00:04]} 43. Kg4 {[%emt 0:00:33]} Nh4 {[%emt 0:02:06]} 44. Nb3 {[%emt 0:00:55]} Nf3 {[%emt 0:00:25]} 45. Bc3 {[%emt 0:00:43]} Nh2+ {[%emt 0:03:37]} 46. Kh3 {[%emt 0:00:05]} Bc7 {[%emt 0:00:23]} 47. Nd2 {[%emt 0:01:16]} g4+ {[%emt 0:00:52]} 48. Kg2 $1 {[%emt 0:00:29]} Nf3 {[%emt 0:00:34]} 49. Nb3 {[%emt 0:00:13]} Nh4+ {[%emt 0:01:07]} 50. Kf1 {[%emt 0:00:03]} Nf5 {[%emt 0:00:35]} 51. Ke2 {[%emt 0:00:19]} Bd8 {[%emt 0:01:05]} 52. Bd2 {[%emt 0:00:48]} Bf6 {[%emt 0:00:45]} 53. Bc3 {[%emt 0:01:19]} Kc7 {[%emt 0:01:04]} 54. Bb4 {[%emt 0:00:11]} Bg5 {[%emt 0:00:13]} 55. Bd2 {[%emt 0:00:05]} Nh4 {[%emt 0:00:15]} 56. Bc3 {[%emt 0:00:29]} Ng6 {[%emt 0:01:39]} 57. Bb4 {[%emt 0:00:14]} Ne7 {[%emt 0:00:05]} 58. Ba5+ {[%emt 0:00:18]} Kc8 {[%emt 0:00:14]} 59. a4 {[%emt 0:01:03]} Nf5 {[%emt 0:01:19]} 60. Bd2 {[%emt 0:00:04]} Bd8 {[%emt 0:02:03]} 61. Ba5 {[%emt 0:01:30]} Bh4 {[%emt 0:01:40]} 62. Bd2 {[%emt 0:00:11]} Nh6 {[%emt 0:00:34]} 63. Bc3 {[%emt 0:00:22]} Nf7 {[%emt 0:00:07]} 64. Bd2 {[%emt 0:00:25]} Ng5 {[%emt 0:00:18]} 65. Bc3 {[%emt 0:00:33]} Nf3 {[%emt 0:02:36]} 66. Kf1 {[%emt 0:00:06]} Bd8 {[%emt 0:00:21]} 67. Ke2 {[%emt 0:00:10]} Kb7 {[%emt 0:00:10]} 68. Ba5 {[%emt 0:00:04]} Bh4 {[%emt 0:02:50]} 69. Bc3 {[%emt 0:00:04]} Ng5 {[%emt 0:01:49]} 70. Na5+ {[%emt 0:00:06]} Kc7 {[%emt 0:00:02]} 71. Nb3 {[%emt 0:00:06]} Ne6 {[%emt 0:00:14]} 72. Bb4 {[%emt 0:00:10]} Bg5 {[%emt 0:03:06]} 73. Bc3 {[%emt 0:00:13]} Ng7 {[%emt 0:02:03]} 74. Bb4 {[%emt 0:00:01]} Nf5 {[%emt 0:00:12]} 75. Bd2 {[%emt 0:00:00]} g3 {[%emt 0:00:33]} 76. fxg3 {[%emt 0:00:03]} Nxg3+ {[%emt 0:00:05]} 77. Ke1 {[%emt 0:00:13]} Bh4 {[%emt 0:00:21]} 78. Kd1 {[%emt 0:00:01]} Nf1 {[%emt 0:00:16]} 79. Ke2 {[%emt 0:00:03]} Nxd2 {[%emt 0:01:19]} 80. Nxd2 {[%emt 0:00:01]} Kb7 {[%emt 0:00:14]} 81. Nb3 {[%emt 0:00:01]} Ka6 {[%emt 0:00:05]} 82. Kf1 {[%emt 0:00:01]} Bd8 {[%emt 0:00:21]} 83. Ke2 {[%emt 0:00:01]} Ba5 {[%emt 0:00:07]} 84. Kd1 {[%emt 0:00:04]} Bb4 {[%emt 0:00:17]} 85. Ke2 {[%emt 0:00:03]} Kb7 {[%emt 0:00:31]} 86. Kd1 {[%emt 0:00:18]} Kc8 {[%emt 0:00:06]} 87. Nc1 {[%emt 0:00:03]} Kd7 {[%emt 0:00:10]} 88. Ne2 {[%emt 0:00:14]} Ke6 {[%emt 0:00:21]} 89. Ng3 {[%emt 0:00:14]} Ba5 {[%emt 0:00:04]} 90. Ke2 {[%emt 0:00:12]} Bc7 {[%emt 0:00:47]} 91. Nf1 $1 {[%emt 0:00:04]} Kf5 {[%emt 0:00:59]} 92. Nd2 {[%emt 0:00:08]} Kg4 {[%emt 0:00:40]} 93. Nb3 {[%emt 0:00:02]} Kg3 {[%emt 0:00:10]} 94. Nc1 {[%emt 0:00:04]} Ba5 {[%emt 0:02:06]} 95. Nb3 {[%emt 0:00:05]} Bb4 {[%emt 0:00:06]} 96. Nc1 $1 {[%emt 0:00:02]} Bc3 {[%emt 0:01:42]} 97. Na2 {[%emt 0:00:12]} Ba5 {[%emt 0:00:18]} 98. Nc1 {[%emt 0:00:01]} Kg2 {[%emt 0:00:54]} 99. Na2 {[%emt 0:00:07]} Kg1 {[%emt 0:01:15]} (99... Kg3 $5) 100. Nc1 {[%emt 0:00:01]} Bb4 {[%emt 0:00:19]} 101. Na2 {[%emt 0:00:01]} Ba3 {[%emt 0:02:50]} 102. Nc3 $1 {[%emt 0:00:01]} Kg2 {[%emt 0:01:02]} 103. Na2 {[%emt 0:00:01]} Kg3 {[%emt 0:00:38]} 104. Nc3 $1 {[%emt 0:00:00]} Bb4 {[%emt 0:00:22]} 105. Na2 {[%emt 0:00:02]} Ba5 {[%emt 0:00:23]} 106. Nc1 {[%emt 0:00:01]} Kg4 {[%emt 0:00:06]} 107. Nb3 {[%emt 0:00:01]} Bb4 {[%emt 0:00:12]} 108. Nc1 {[%emt 0:00:01]} Kf5 {[%emt 0:00:06]} 109. Nb3 {[%emt 0:00:00]} Ke6 {[%emt 0:00:07]} 110. Kd1 {[%emt 0:00:01]} Kd7 {[%emt 0:00:04]} 111. Ke2 {[%emt 0:00:01]} Kc7 {[%emt 0:00:14]} 112. Kd1 {[%emt 0:00:01]} Kb7 {[%emt 0:00:06]} 113. Ke2 {[%emt 0:00:02]} Ka6 {[%emt 0:00:03]} 114. Kd1 {[%emt 0:00:02]} Ba5 {[%emt 0:01:55]} 115. Ke2 {[%emt 0:00:01]} Bd8 {[%emt 0:00:07]} 116. Kd2 {[%emt 0:00:00]} Bh4 {[%emt 0:00:11]} 117. Ke2 {[%emt 0:00:01]} Bg3 {[%emt 0:00:01]} 118. Kf1 {[%emt 0:00:06]} Bh4 {[%emt 0:00:15]} 119. Ke2 {[%emt 0:00:01]} Bg3 {[%emt 0:00:31]} 120. Kf1 $1 {[%emt 0:00:00]} Bb8 {[%emt 0:00:17]} 121. Kf2 {[%emt 0:00:04]} Bc7 {[%emt 0:00:03]} 122. Ke2 {[%emt 0:00:03]} Kb7 {[%emt 0:00:19]} 123. Kd2 {[%emt 0:00:04]} a6 {[%emt 0:00:12]} 124. Ke2 {[%emt 0:00:03]} Bg3 {[%emt 0:00:18]} 125. Nd2 {[%emt 0:00:09]} Bc7 {[%emt 0:00:27]} 126. Nb3 {[%emt 0:00:05]} Kc8 {[%emt 0:00:09]} 127. Kd2 {[%emt 0:00:15]} Kd7 {[%emt 0:00:11]} 128. Ke2 {[%emt 0:00:08]} Ke6 {[%emt 0:00:06]} 129. Nc1 {[%emt 0:00:06]} Ba5 {[%emt 0:00:40]} 130. Nb3 {[%emt 0:00:01]} Bb4 {[%emt 0:00:14]} 131. Nc1 {[%emt 0:00:01]} Bc3 {[%emt 0:00:48]} 132. Na2 {[%emt 0:00:04]} Ba5 {[%emt 0:00:10]} 133. Nc1 {[%emt 0:00:00]} Kf5 {[%emt 0:01:09]} 134. Nb3 {[%emt 0:00:02]} Bc3 {[%emt 0:00:21]} 135. Nc1 {[%emt 0:00:01]} Bb2 {[%emt 0:00:20]} 136. Nb3 {[%emt 0:00:05]} Bc3 {[%emt 0:00:25]} 137. Nc1 $1 {[%emt 0:00:00]} Kg4 {[%emt 0:00:08]} 138. Na2 {[%emt 0:00:01]} Ba5 {[%emt 0:00:11]} 139. Nc1 {[%emt 0:00:00]} Kg3 {[%emt 0:01:20]} 140. Nb3 {[%emt 0:00:03]} Bc3 {[%emt 0:01:10]} 141. Nc1 $1 {[%emt 0:00:01]} Bb2 {[%emt 0:00:46]} 142. Nb3 {[%emt 0:00:01]} Bc3 {[%emt 0:00:19]} 143. Nc1 $1 {[%emt 0:00:01]} Kg4 {[%emt 0:19:07]} 1/2-1/2

[Event "Charlotte Spring IM-C 2023"]
[Site "Charlotte"]
[Date "2023.03.20"]
[Round "9.3"]
[White "Yu, Jiangwei"]
[Black "Vanapalli, Vishnu"]
[Result "1-0"]
[ECO "D35"]
[WhiteElo "2167"]
[BlackElo "2226"]
[Annotator "TA"]
[PlyCount "85"]
[EventDate "2023.03.14"]
[EventType "tourn"]
[EventCountry "USA"]
[SourceTitle "playchess.com"]
[Source "ChessBase"]
[SourceQuality "1"]
[TimeControl "5400+30"]

{[%evp 9,85,9,26,8,9,2,0,4,7,10,9,0,8,8,20,7,8,12,0,0,24,-4,-8,-8,-8,-25,-10,-18,0,0,6,-10,0,0,31,29,33,28,31,31,39,0,0,0,4,2,0,22,127,114,106,124,176,169,196,165,561,580,636,682,703,579,616,69,650,393,503,312,401,370,675,594,1343,1356,29981,11647,29987,2415]} 1. d4 {[%emt 0:00:28]} d5 {[%emt 0:01:08]} 2. c4 {[%emt 0:00:05]} e6 {[%emt 0:00:06]} 3. Nc3 {[%emt 0:00:15]} Be7 {[%emt 0:00:13]} 4. Bf4 {[%emt 0:00:25]} Nf6 {[%emt 0:00:20]} 5. e3 {[%emt 0:00:11]} O-O {[%emt 0:00:20]} 6. a3 {[%emt 0:00:20] D35: Queen's Gambit Declined: Exchange Variation.} b6 {[%emt 0:07:32]} 7. Nb5 {[%emt 0:00:39]} Na6 {[%emt 0:05:27]} 8. Nf3 {[%emt 0:01:03] The position is equal.} Bb7 {[%emt 0:02:10]} 9. Rc1 {[%emt 0:00:09]} c6 {[%emt 0:03:19]} 10. Nc3 {[%emt 0:00:04]} c5 {[%emt 0:06:19]} 11. cxd5 {[%emt 0:00:25]} Nxd5 {[%emt 0:02:34]} 12. Nxd5 {[%emt 0:00:45]} exd5 {[%emt 0:00:12]} 13. Bd3 {[%emt 0:01:29]} Nc7 {[%emt 0:04:08] [#]} 14. O-O $146 {[%emt 0:03:22]} ({Predecessor:} 14. h4 Ne8 15. Be5 Nf6 16. Ng5 h6 17. Qf3 Rc8 18. Bxf6 Bxf6 19. Nh7 Re8 20. Nxf6+ Qxf6 21. Qxf6 gxf6 {1-0 Kovalenko,I (2637)-Ladva,O (2386) Baltic zt Vilnius 2014 (6)}) 14... Ne6 {[%emt 0:00:42]} 15. Bg3 {[%emt 0:01:23]} (15. Qc2 $5 {[%cal Rd3h7]}) 15... g6 {[%emt 0:01:29]} 16. dxc5 {[%emt 0:04:47]} bxc5 {[%emt 0:01:04]} 17. Qe2 {[%emt 0:09:13]} Qb6 {[%emt 0:02:08]} 18. Be5 {[%emt 0:01:03]} Rfd8 {[%emt 0:02:51]} 19. h4 {[%emt 0:08:20]} Rac8 {[%emt 0:17:02]} 20. Rfd1 {[%emt 0:04:37]} a5 {[%emt 0:02:56]} 21. h5 {[%emt 0:02:44]} c4 {[%emt 0:09:35]} 22. Bc2 {[%emt 0:01:14]} Nc5 {[%emt 0:01:01]} 23. hxg6 {[%emt 0:12:16]} hxg6 {[%emt 0:00:22]} 24. Bd4 {[%emt 0:00:12]} Bf6 {[%emt 0:06:05]} 25. Ne5 {[%emt 0:00:55] Qf3 is the strong threat.} (25. Qd2 $5) 25... Qd6 $1 {[%emt 0:04:47]} 26. f4 {[%emt 0:03:02][%cal Bf2f4,Bf4f5][%mdl 32]} Nd7 {[%emt 0:00:44]} 27. Nxd7 {[%emt 0:00:32]} Rxd7 {[%emt 0:00:20]} 28. Qg4 {[%emt 0:06:45] Bxf6 would be deadly.} Rcd8 {[%emt 0:03:23]} (28... Rcc7 $11) 29. f5 $1 $16 {[%emt 0:01:18]} g5 {[%emt 0:02:32]} 30. Rf1 {[%emt 0:06:18]} Re7 {[%emt 0:02:52] [#]} (30... Bc6 $16 {keeps fighting.}) 31. Rf3 $1 $18 {[%emt 0:02:13]} Rde8 {[%emt 0:02:19] [#]} 32. Kf2 $1 {[%emt 0:07:01]} Re5 $2 {[%emt 0:03:33]} (32... Bxd4 {is tougher.} 33. Qxg5+ Kf8 34. exd4 f6 35. Qh6+ Rg7) 33. Rh1 {[%emt 0:01:58]} Kf8 {[%emt 0:00:42]} 34. Rh7 {[%emt 0:06:56] Wards off Re4. White threatens Qh5 and mate.} (34. Bxe5 Qxe5 35. Qd4 Qxd4 36. exd4 Bxd4+ 37. Kf1 Bf6 $15) 34... Ke7 {[%emt 0:01:00]} 35. Kg1 {[%emt 0:02:25]} (35. Bxe5 Qxe5 36. Ba4 (36. Qh5 Rf8 $17) 36... Qxb2+ 37. Kg1 Rf8 $11) 35... Bc6 {[%emt 0:00:42]} 36. Bc3 $2 {[%emt 0:02:46]} (36. Bxe5 Qxe5 37. Rf1 (37. Qh5 Rf8 $17) 37... Qxe3+ 38. Kh1 d4 $17) (36. Rfh3 $18) 36... Qc7 $2 {[%emt 0:01:40][%mdl 8192] A mistake that costs the game.} 37. Qd4 {[%emt 0:00:29] Black must now prevent Qc5+.} (37. Bxe5 Qxe5 38. Bd1 (38. Qh5 Rf8 $17) 38... Qxb2 $17) 37... Bd7 {[%emt 0:00:49]} 38. Qd2 {[%emt 0:01:02][%cal Oc3a5]} Ra8 {[%emt 0:00:13]} 39. Bd4 {[%emt 0:01:09]} (39. Bxe5 Qxe5 40. b3 c3 $14) 39... Be8 $2 {[%emt 0:01:31]} (39... g4 40. Rf4 (40. Bxe5 Qxe5 41. Rf1 Rb8 $11) 40... g3) 40. Qc3 {[%emt 0:02:32]} (40. Bxe5 Qxe5 41. Rh6 g4 $11) 40... Ra7 {[%emt 0:02:19]} 41. Rfh3 {[%emt 0:00:33]} ({Weaker is} 41. Bxe5 Qxe5 42. Qxe5+ Bxe5 $11) 41... Kd6 {[%emt 0:01:20]} 42. R7h6 {[%emt 0:01:05]} Qe7 {[%emt 0:00:26]} 43. Bxa7 {[%emt 0:00:48] Artfully played by Yu.   Weighted Error Value: White=0.44/Black=0.92} (43. Bxe5+ $142 Kd7 44. Bxf6 Qc5 45. Bd4 {[%mdl 64] Deflection} Qe7 46. Bxa7 Kc8 47. Qxa5 g4 48. Rb6) 1-0

[Event "Charlotte Spring IM-C 2023"]
[Site "Charlotte"]
[Date "2023.03.20"]
[Round "9.5"]
[White "Nguyen, James Le"]
[Black "Jayaraman, Roshan"]
[Result "1/2-1/2"]
[ECO "B52"]
[WhiteElo "2100"]
[BlackElo "1907"]
[Annotator "TA"]
[PlyCount "102"]
[EventDate "2023.03.14"]
[EventType "tourn"]
[EventCountry "USA"]
[SourceTitle "playchess.com"]
[Source "ChessBase"]
[SourceQuality "1"]
[TimeControl "5400+30"]

{[%evp 19,102,0,20,0,10,17,14,0,31,0,0,0,0,0,0,-31,0,0,0,0,0,12,19,0,-5,-37,-38,-203,0,-25,0,0,45,41,41,41,51,51,51,51,51,51,51,51,51,51,51,51,51,51,51,51,51,51,58,51,51,51,51,51,135,58,59,0,51,51,51,51,51,51,51,51,51,38,51,25,51,51,51,0,51,51,51,44,75]} 1. e4 {[%emt 0:00:07]} c5 {[%emt 0:06:40]} 2. Nf3 {[%emt 0:00:06]} d6 {[%emt 0:00:09]} 3. Bb5+ {[%emt 0:00:06]} Bd7 {[%emt 0:00:08]} 4. Bxd7+ {[%emt 0:00:10]} Qxd7 {[%emt 0:00:07]} 5. c4 {[%emt 0:00:13]} e5 {[%emt 0:00:22]} 6. Nc3 {[%emt 0:00:24]} Nc6 {[%emt 1:26:04]} 7. a3 {[%emt 0:00:16]} g6 {[%emt 0:00:00]} 8. O-O {[%emt 0:01:16]} Bg7 {[%emt 0:00:00]} 9. b4 {[%emt 0:00:18]} Nge7 {[%emt 0:00:00][%cal Bg8e7,Be7c8,Bc8d6][%mdl 32]} 10. d3 {[%emt 0:01:40]} O-O {[%emt 0:00:00]} 11. bxc5 {[%emt 0:01:28] B52: Sicilian: Moscow Variation with 3...Bd7.} dxc5 {[%emt 0:00:00]} 12. Nd5 {[%emt 0:00:11]} f5 {[%emt 0:00:00]} 13. Bg5 {[%emt 0:13:43][%cal Bc1g5,Bg5d2,Bd2e3][%mdl 32] The position is equal.} Nc8 {[%emt 0:00:00] [#]} 14. Bd2 $146 {[%emt 0:00:38]} (14. Be3 $5 {[%cal Re3c5]}) ({Predecessor:} 14. Be3 b6 15. a4 f4 16. Bd2 a5 17. Rb1 Nb4 18. g3 Ra7 19. Bc3 Qd6 20. gxf4 exf4 21. Bxg7 Rxg7 {1-0 Rublevsky,S (2685)-Brestian,E (2430) Olympiad-33 Elista 1998 (1.1)}) 14... Nd6 {[%emt 0:00:00]} 15. Qe2 {[%emt 0:04:54]} Rae8 {[%emt 0:00:00]} 16. a4 {[%emt 0:03:00]} h6 {[%emt 0:00:00]} 17. Be3 {[%emt 0:16:45]} b6 {[%emt 0:00:00]} 18. a5 $1 {[%emt 0:01:36]} fxe4 {[%emt 0:00:00]} (18... Nxa5 {with more complications.} 19. Bxc5 fxe4 20. dxe4 Naxc4 21. Bb4 Rc8) 19. dxe4 {[%emt 0:00:18]} Nxa5 {[%emt 0:00:00]} 20. Bxc5 {[%emt 0:02:51][%mdl 64] [#] Deflection} Naxc4 {[%emt 0:07:00]} 21. Bxd6 {[%emt 0:02:48]} (21. Bb4 $5 {[%cal Rf1c1]}) 21... Nxd6 {[%emt 0:00:30]} 22. Qa2 {[%emt 0:01:06] Strongly threatening Nf6+.} Rf7 {[%emt 0:00:00] Repels Nf6+} (22... Nxe4 $2 23. Nf6+ (23. Qxa7 $2 {perishes.} Qxd5 24. Qxb6 Rxf3 $19) 23... Kh8 24. Nxd7 $18) 23. Rfc1 $2 {[%emt 0:03:28]} (23. Rfd1 $15) 23... Nb5 $2 {[%emt 0:01:00]} (23... Nxe4 $19 {Threatens to win with ...Nc5.} 24. Rc7 Qe6) 24. Qa6 {[%emt 0:08:21]} Kh7 {[%emt 0:00:00]} 25. Rab1 {[%emt 0:02:08]} Nd4 {[%emt 0:00:00]} (25... Nd6 $5 {[%cal Rd6e4]} 26. Rc7 Qe6 $11) 26. Rc7 $36 {[%emt 0:03:13][%mdl 2048] White has the initiative.} Nxf3+ {[%emt 0:00:00]} 27. gxf3 {[%emt 0:00:06]} Qxc7 {[%emt 0:00:00]} 28. Nxc7 {[%emt 0:00:05]} Rxc7 {[%emt 0:00:00]} 29. Rd1 {[%emt 0:01:38]} Rf8 {[%emt 0:00:00]} 30. Rd3 {[%emt 0:01:02][%mdl 1024] White has compensation.} h5 {[%emt 0:00:00]} 31. Kg2 {[%emt 0:02:16]} Rff7 {[%emt 0:00:00]} 32. Qb5 {[%emt 0:01:34]} Rfe7 {[%emt 0:00:00]} 33. Qa4 {[%emt 0:01:08]} Rf7 {[%emt 0:00:00]} 34. Qb3 {[%emt 0:01:11]} Rf6 {[%emt 0:00:00]} 35. Qd5 {[%emt 0:01:25]} Rf8 {[%emt 0:00:00]} 36. Qe6 {[%emt 0:01:09] aiming for Rd6.} Rcf7 {[%emt 0:00:00]} 37. Rc3 {[%emt 0:01:31]} Rf6 {[%emt 0:00:00]} 38. Qd5 {[%emt 0:01:03]} (38. Qxe5 $2 R6f7 $19) 38... R6f7 {[%emt 0:00:00] Prevents Qb7.} 39. Qb3 {[%emt 0:01:21]} Bh8 {[%emt 0:00:00] [#]} (39... Re7 $14) 40. Rc6 {[%emt 0:02:13]} ({White should try} 40. Rc8 $1 $16) 40... Bg7 {[%emt 0:00:00]} 41. Rc3 {[%emt 0:01:40]} (41. Qc3 $14) 41... Re7 {[%emt 0:00:00]} (41... Bh8 $1 $11) 42. Kf1 {[%emt 0:00:40]} Ref7 {[%emt 0:00:00]} 43. Ke2 {[%emt 0:00:13]} Re7 {[%emt 0:00:00]} 44. Qd5 {[%emt 0:01:45]} Ref7 {[%emt 0:00:00]} 45. Qd6 {[%emt 0:01:06]} Rf6 {[%emt 0:00:00]} 46. Qa3 {[%emt 0:00:52]} (46. Qxe5 $2 {loses.} R6f7 $19) 46... R6f7 {[%emt 0:00:00]} 47. Rc4 {[%emt 0:00:27]} Rd8 {[%emt 0:00:00]} 48. Qb3 {[%emt 0:02:55]} Rdf8 {[%emt 0:00:00]} 49. Rc3 {[%emt 0:00:53]} Re7 $1 {[%emt 0:00:00]} 50. Rd3 {[%emt 0:00:15] Prevents Rd8.} Rf6 {[%emt 0:00:00]} 51. Rd8 {[%emt 0:00:48]} Rf8 {[%emt 0:00:00] Weighted Error Value: White=0.17 (very precise) /Black=0.15 (very precise)} 1/2-1/2